bitfinex-derivatives/quotes_ETHF0:USTF0_20260120
["timestamp","ask_amount","ask_price","bid_price","bid_amount"]
[1768921539665,1.4337502,3027.6,3024.4,3.61676507]
[1768921539870,0.48282398,3027.5,3024.4,3.61676507]
[1768921540071,0.48282398,3027.4,3024.4,3.61676507]
[1768921540273,0.48282398,3027.3,3024.4,3.61676507]
[1768921540477,1.4354869,3027.2,3024.4,3.61676507]
[1768921540667,1.4354869,3027.1,3024.4,3.61676507]
[1768921540872,0.48282398,3027.0,3024.4,3.61676507]
[1768921541072,0.48282398,3026.9,3024.4,3.61676507]
[1768921541274,0.16532,3027.3,3024.6,3.61676507]
[1768921541481,1.43811062,3027.2,3024.6,3.61676507]
[1768921541675,0.48425842,3027.1,3024.6,3.61676507]
[1768921541880,0.48425842,3027.0,3024.6,3.61676507]
[1768921542078,0.16532,3027.3,3024.6,3.61676507]
[1768921542284,1.44087738,3027.2,3024.6,3.61676507]
[1768921542475,0.48520366,3027.1,3024.6,3.61676507]
[1768921542675,0.48520366,3027.0,3024.6,3.61676507]
[1768921542876,1.44079934,3026.9,3024.6,3.61676507]
[1768921543079,0.48520366,3026.8,3024.6,3.61676507]
[1768921543377,0.0028477,3027.7,3024.6,3.61676507]
[1768921543573,0.48581164,3027.6,3024.8,3.57196103]
[1768921543774,0.0028477,3027.7,3024.8,3.57196103]
[1768921543976,0.0028477,3027.7,3024.7,9.7359652]
[1768921543977,0.0028477,3027.7,3025.0,3.57196103]
[1768921544179,4.63819661,3028.9,3025.5,3.57196103]
[1768921544372,5.68191991,3029.7,3026.2,3.57196103]
[1768921544572,0.26504261,3029.5,3026.2,3.57196103]
[1768921544777,1.44416765,3029.4,3026.4,3.58077674]
[1768921544978,1.44416765,3029.3,3026.4,3.58077674]
[1768921545179,1.44332323,3029.2,3026.4,3.58410422]
[1768921545488,1.44332323,3029.1,3026.4,3.58410422]
[1768921545690,0.48632036,3029.0,3026.4,3.58410422]
[1768921545986,0.48632036,3028.9,3026.4,3.58410422]
[1768921546186,0.48632036,3028.8,3026.6,3.58077674]
[1768921546387,0.48632036,3028.7,3026.6,3.58077674]
[1768921546585,0.00290299,3029.3,3026.6,3.58077674]
[1768921546885,0.48508524,3029.2,3026.6,3.58077674]
[1768921547091,0.00290299,3029.3,3026.8,3.58077674]
[1768921547290,0.48491364,3029.2,3026.8,3.58077674]
[1768921547489,0.48491364,3029.1,3026.8,3.58077674]
[1768921547688,0.48497273,3029.0,3026.8,3.58077674]
[1768921547890,0.48497273,3028.9,3026.8,3.58077674]
[1768921548185,1.44043911,3028.8,3026.8,3.58077674]
[1768921548389,1.44043911,3028.7,3026.8,3.58077674]
[1768921548589,0.48497273,3028.6,3026.8,3.58077674]
[1768921548791,0.48497273,3028.5,3026.8,3.58077674]
[1768921549087,2.6904,3028.7,3026.8,3.58077674]
[1768921549290,0.4849194,3028.6,3026.8,3.58077674]
[1768921549490,0.4849194,3028.5,3026.8,3.58077674]
[1768921549792,0.4849194,3028.4,3026.4,0.00332748]
[1768921549991,0.4849194,3028.3,3026.4,0.00332748]
[1768921550290,0.4849194,3028.2,3026.4,0.00332748]
[1768921550586,1.43669546,3028.1,3026.4,0.00332748]
[1768921550791,2.6904,3028.7,3026.4,0.00332748]
[1768921550792,3.64244898,3027.9,3026.4,0.00332748]
[1768921550989,4.59422504,3027.8,3026.4,0.00332748]
[1768921551183,1.43643651,3027.7,3026.4,0.00332748]
[1768921551385,0.48466045,3027.6,3026.4,0.00332748]
[1768921551687,0.48466045,3027.5,3026.4,0.00332748]
[1768921551896,0.48466045,3027.4,3025.1,3.58077674]
[1768921552095,1.43654683,3027.3,3025.1,3.58077674]
[1768921552388,1.43654683,3027.2,3025.1,3.58077674]
[1768921552590,3.64244898,3027.4,3024.0,3.307]
[1768921552591,4.12710943,3027.1,3024.4,3.58077674]
[1768921552794,3.64244898,3026.9,3024.4,3.58406449]
[1768921553090,3.64244898,3026.7,3024.4,3.58406449]
[1768921553288,3.64244898,3026.5,3024.4,0.00328775]
[1768921553491,3.64244898,3026.3,3024.4,0.00328775]
[1768921553691,1.43631021,3026.2,3024.4,0.00328775]
[1768921553890,1.43631021,3026.1,3024.4,0.00328775]
[1768921554093,1.43631021,3026.0,3024.4,0.00328775]
[1768921554389,1.43540162,3025.9,3024.4,0.00328775]
[1768921554583,0.48466045,3025.8,3024.4,0.00328775]
[1768921554784,3.64244898,3026.9,3024.4,0.00328775]
[1768921554985,1.43514383,3026.8,3024.4,0.00328775]
[1768921555282,1.43514383,3026.7,3024.4,3.58406449]
[1768921555479,1.43514383,3026.6,3024.4,3.58406449]
[1768921555684,0.4842617,3026.5,3024.4,3.58406449]
[1768921555883,0.00270107,3027.1,3024.4,3.58406449]
[1768921556083,1.43562978,3027.0,3024.4,3.58406449]
[1768921556292,0.48444948,3026.9,3024.4,3.58406449]
[1768921556486,0.48444948,3026.8,3024.4,3.58406449]
[1768921556695,0.48444948,3026.7,3024.4,3.58406449]
[1768921556889,0.00270107,3027.1,3024.4,3.58406449]
[1768921557092,0.47369002,3027.0,3024.4,3.58406449]
[1768921557294,0.47369002,3026.9,3024.4,3.58406449]
[1768921557593,0.00270107,3027.1,3024.4,3.58406449]
[1768921557791,0.47377102,3027.0,3024.4,3.58406449]
[1768921558098,0.00270107,3027.1,3024.4,3.58406449]
[1768921558297,0.47367139,3027.0,3024.4,3.58406449]
[1768921558504,0.47367139,3026.9,3024.4,3.58406449]
[1768921558689,4.96135707,3028.7,3025.0,3.58077674]
[1768921558998,1.42557212,3028.6,3025.2,3.58077674]
[1768921559294,5.0680211,3028.5,3025.4,3.58077674]
[1768921559487,3.64244898,3028.3,3025.4,3.58077674]
[1768921559688,1.42557212,3028.2,3025.4,3.58077674]
[1768921559997,0.47400363,3028.1,3025.4,3.58077674]
[1768921560186,0.00258257,3028.3,3025.6,3.58077674]
[1768921560502,3.64244898,3028.1,3025.6,3.58077674]
[1768921560797,0.47374367,3028.0,3025.6,3.58077674]
[1768921560996,0.00258257,3028.3,3025.6,3.58077674]
[1768921560997,0.47374367,3027.9,3025.6,3.58077674]
[1768921561201,3.64244898,3027.7,3025.0,6.88777674]
[1768921561396,1.42454624,3027.6,3025.1,3.58077674]
[1768921561603,1.42454624,3027.5,3025.1,3.58077674]
[1768921561795,1.42454624,3027.4,3025.1,3.58077674]
[1768921562097,0.47374367,3027.3,3025.1,3.58077674]
[1768921562297,0.47358431,3027.2,3025.1,3.58077674]
[1768921562604,0.47355264,3027.1,3025.1,3.58077674]
[1768921562802,0.47355264,3027.0,3025.1,3.58077674]
[1768921563002,3.64244898,3028.5,3025.3,3.58077674]
[1768921563188,3.64244898,3029.2,3025.7,3.58077674]
[1768921563390,3.64244898,3029.2,3025.7,6.88777674]
[1768921563686,3.64244898,3029.8,3026.4,3.58077674]
[1768921564093,3.64244898,3029.6,3026.6,3.58077674]
[1768921564298,3.64244898,3029.4,3026.6,3.58077674]
[1768921564493,3.64244898,3029.2,3026.6,3.58077674]
[1768921564697,3.64244898,3029.0,3026.6,0.00285658]
[1768921564904,3.64244898,3028.8,3026.6,0.00285658]
[1768921565202,3.64244898,3028.6,3026.6,0.00285658]
[1768921565396,3.64244898,3028.4,3026.6,0.00285658]
[1768921565599,3.64244898,3028.2,3026.6,0.00285658]
[1768921565904,0.00344324,3029.2,3026.6,3.58363332]
[1768921566293,3.64244898,3029.0,3026.6,0.00285658]
[1768921566494,3.64244898,3028.8,3026.6,0.00285658]
[1768921566693,4.59229066,3028.7,3026.6,0.00285658]
[1768921566904,3.64244898,3028.7,3026.6,0.00285658]
[1768921567098,0.00344324,3029.2,3026.6,3.58363332]
[1768921567099,3.64589222,3029.2,3026.6,3.58363332]
[1768921567398,2.1341,3028.6,3026.6,3.58363332]
[1768921567803,3.64244898,3028.4,3026.6,0.00285658]
[1768921568307,2.1341,3028.6,3026.6,0.00285658]
[1768921568308,3.64244898,3028.2,3026.6,0.00285658]
[1768921570000,2.1341,3028.6,3026.6,0.00285658]
[1768921570204,3.64244898,3028.5,3026.6,0.00285658]
[1768921570503,3.64244898,3028.3,3026.6,0.00285658]
[1768921571003,2.1341,3028.6,3026.6,0.00285658]
[1768921571004,3.64244898,3028.1,3026.6,0.00285658]
[1768921571202,3.64244898,3027.9,3026.6,0.00285658]
[1768921571498,3.64244898,3027.9,3025.2,3.58077674]
[1768921571499,3.64244898,3027.7,3025.2,3.58077674]
[1768921572211,3.64244898,3028.3,3025.2,3.58077674]
[1768921572398,4.591606,3028.2,3025.2,3.58429441]
[1768921572594,3.64244898,3028.0,3025.2,3.58429441]
[1768921572791,0.94915702,3027.9,3025.2,3.58429441]
[1768921572995,3.64244898,3027.9,3025.2,3.58429441]
[1768921573907,3.64244898,3027.5,3025.2,0.00351767]
[1768921574111,3.64244898,3027.3,3025.2,0.00351767]
[1768921574297,3.64244898,3027.1,3025.2,0.00351767]
[1768921574607,3.64244898,3026.9,3025.2,0.00351767]
[1768921574796,3.64244898,3026.7,3025.2,0.00351767]
[1768921575001,0.45762309,3026.6,3025.2,0.00351767]
[1768921575201,0.45762309,3026.5,3025.2,0.00351767]
[1768921575400,3.64244898,3026.7,3025.2,0.00351767]
[1768921575804,0.0031956,3026.9,3025.2,0.00351767]
[1768921576005,0.45800096,3026.8,3025.2,0.00351767]
[1768921576303,0.0031956,3026.9,3025.2,0.00351767]
[1768921576506,0.45808312,3026.8,3025.2,0.00351767]
[1768921576703,0.0031956,3026.9,3025.2,0.00351767]
[1768921577011,5.12635954,3026.8,3025.2,0.00351767]
[1768921577311,3.71981549,3026.6,3025.2,0.00351767]
[1768921577509,3.71981549,3026.4,3023.8,3.36829744]
[1768921577805,3.71981549,3026.2,3023.8,3.36829744]
[1768921578000,3.71981549,3026.0,3023.8,3.36829744]
[1768921578310,3.71981549,3026.0,3023.1,27.9]
[1768921578311,4.17792017,3025.9,3023.2,3.36829744]
[1768921578504,4.17792017,3025.8,3023.2,3.37117789]
[1768921578710,4.17792017,3025.7,3023.2,3.37117789]
[1768921579007,3.71981549,3025.5,3023.2,0.00288045]
[1768921579201,3.71981549,3025.3,3023.2,0.00288045]
[1768921579507,3.71981549,3025.1,3023.2,0.00288045]
[1768921579897,3.71981549,3024.9,3023.2,0.00288045]
[1768921581207,3.71981549,3024.7,3022.0,3.36829744]
[1768921581411,3.71981549,3024.5,3022.0,3.36829744]
[1768921582302,3.71981549,3024.3,3022.0,0.00345529]
[1768921582507,3.71981549,3024.1,3022.0,0.00345529]
[1768921582714,3.71981549,3023.9,3022.0,0.00345529]
[1768921583005,0.16549,3024.1,3022.0,0.00345529]
[1768921583006,4.17558952,3023.8,3022.0,0.00345529]
[1768921583311,3.71981549,3023.8,3022.0,0.00345529]
[1768921584514,3.71981549,3023.6,3020.8,3.36829744]
[1768921584812,3.71981549,3023.4,3020.8,3.36829744]
[1768921585109,3.71981549,3023.4,3020.2,3.36829744]
[1768921585301,3.71981549,3023.0,3020.2,3.36829744]
[1768921585507,3.71981549,3023.0,3020.2,3.37133139]
[1768921586313,0.16555,3023.1,3020.4,3.36829744]
[1768921586517,3.88536549,3023.1,3020.4,3.36829744]
[1768921587413,6.60472315,3024.5,3020.2,0.00303395]
[1768921587414,3.71981549,3022.7,3020.2,0.00303395]
[1768921588506,3.71981549,3022.7,3020.2,3.37133139]
[1768921588909,3.71981549,3023.3,3020.4,3.36829744]
[1768921589112,3.71981549,3024.3,3020.4,3.36829744]
[1768921589311,3.71981549,3024.3,3020.6,3.36829744]
[1768921589715,3.71981549,3023.8,3020.8,3.36829744]
[1768921589911,3.72253864,3024.5,3020.8,3.36829744]
[1768921590215,3.72253864,3024.5,3021.0,3.36829744]
[1768921590711,3.72253864,3024.5,3021.2,3.36829744]
[1768921590911,3.72253864,3024.5,3021.5,31.26829744]
[1768921591307,3.72253864,3024.5,3021.5,3.36829744]
[1768921591308,3.71981549,3024.1,3021.5,3.36829744]
[1768921592008,3.71981549,3024.1,3020.9,31.26829744]
[1768921592222,3.71981549,3024.1,3021.0,3.36829744]
[1768921592919,3.88530549,3024.1,3021.0,3.36829744]
[1768921593113,3.88530549,3024.1,3021.2,3.36829744]
[1768921593713,3.71981549,3023.9,3021.2,3.36829744]
[1768921593915,0.00272315,3024.5,3020.5,3.36829744]
[1768921593916,3.71981549,3023.4,3020.5,3.36829744]
[1768921594508,3.71981549,3022.5,3020.2,0.00303395]
[1768921594712,3.71981549,3022.3,3020.2,0.00303395]
[1768921594907,3.72342107,3022.3,3020.2,0.00303395]
[1768921596223,3.72342107,3022.3,3020.2,3.37133139]
[1768921596917,0.00360558,3022.3,3020.2,3.37133139]
[1768921597317,0.00360558,3022.3,3020.4,3.36829744]
[1768921597514,0.16552,3023.6,3020.4,3.36829744]
[1768921597714,3.88533549,3023.6,3020.6,3.36829744]
[1768921598515,3.88888153,3023.6,3020.6,3.36829744]
[1768921599818,0.00354604,3023.6,3020.8,3.36829744]
[1768921600222,0.00354604,3023.6,3021.0,3.36829744]
[1768921600718,0.00354604,3023.6,3021.2,3.36829744]
[1768921601111,0.00354604,3023.6,3021.4,3.36829744]
[1768921601421,0.00354604,3023.6,3021.6,3.36829744]
[1768921602521,3.72336153,3023.6,3021.5,3.311]
[1768921602722,3.72336153,3023.6,3021.1,27.9]
[1768921603225,3.72336153,3023.6,3021.1,31.3362894]
[1768921603434,3.72336153,3023.6,3021.1,3.4362894]
[1768921603925,3.72336153,3023.6,3021.1,31.3362894]
[1768921604119,0.00354604,3023.6,3021.2,3.4362894]
[1768921604317,0.00354604,3023.6,3021.3,3.4362894]
[1768921604721,0.00354604,3023.6,3021.1,27.9]
[1768921604722,0.00354604,3023.6,3021.5,3.4362894]
[1768921605229,3.38297138,3024.8,3021.7,3.54975797]
[1768921605421,3.38297138,3025.7,3021.7,3.54975797]
[1768921605623,3.38297138,3025.5,3021.9,3.54975797]
[1768921605928,3.38297138,3025.5,3022.1,3.54975797]
[1768921606123,3.38297138,3026.2,3022.3,3.54975797]
[1768921606323,3.38297138,3026.0,3022.3,3.54975797]
[1768921606528,1.40492007,3025.9,3022.5,3.54975797]
[1768921606725,3.38297138,3025.7,3022.5,3.55393717]
[1768921606926,3.38297138,3025.5,3022.7,3.54975797]
[1768921607329,0.45763826,3025.4,3022.7,3.54975797]
[1768921607535,3.38297138,3025.4,3022.7,3.54975797]
[1768921607731,4.78835779,3025.3,3022.7,3.54975797]
[1768921607926,1.40538641,3025.2,3022.7,3.54975797]
[1768921608230,0.45758399,3025.1,3022.9,3.54975797]
[1768921608428,3.38297138,3025.3,3022.5,0.0041792]
[1768921608636,2.2888898,3026.2,3022.5,0.0041792]
[1768921608637,3.38297138,3025.1,3022.5,3.55393717]
[1768921608934,1.40586036,3025.0,3022.5,3.55393717]
[1768921609134,0.45773948,3024.9,3022.5,3.55393717]
[1768921609336,3.38297138,3025.1,3022.5,3.55393717]
[1768921609529,1.40583072,3025.0,3022.7,3.54975797]
[1768921609736,3.38297138,3025.1,3022.7,3.54975797]
[1768921609930,0.45766424,3025.0,3022.7,3.54975797]
[1768921610130,3.38297138,3025.1,3022.7,3.54975797]
[1768921610329,0.45766113,3025.0,3022.7,3.54975797]
[1768921610541,3.54838138,3025.6,3022.7,3.54975797]
[1768921610838,1.40441826,3025.5,3022.7,3.54975797]
[1768921611030,1.40441826,3025.4,3022.7,3.54975797]
[1768921611334,3.38297138,3025.6,3022.7,3.54975797]
[1768921611335,3.38297138,3025.2,3022.7,3.54975797]
[1768921611536,3.38297138,3025.0,3022.5,0.0041792]
[1768921611837,3.38297138,3024.8,3022.5,0.0041792]
[1768921612130,3.38297138,3024.6,3022.5,0.0041792]
[1768921612730,3.38297138,3024.4,3022.5,0.0041792]
[1768921612934,3.38297138,3024.2,3022.5,0.0041792]
[1768921613332,3.38297138,3024.0,3021.0,27.9]
[1768921613536,3.38297138,3023.8,3021.1,3.54975797]
[1768921613831,1.40343978,3023.7,3021.1,3.54975797]
[1768921614025,3.38297138,3023.5,3021.1,3.54975797]
[1768921614231,0.4572234,3023.4,3021.1,3.54975797]
[1768921614433,0.00325292,3023.4,3021.1,3.55318881]
[1768921614832,0.00325292,3023.4,3021.3,3.54975797]
[1768921615834,0.00325292,3023.4,3021.5,3.54975797]
[1768921616340,0.00325292,3023.4,3021.7,3.54975797]
[1768921616737,3.38297138,3025.2,3021.9,3.54975797]
[1768921616940,2.45115597,3025.4,3022.1,3.54975797]
[1768921616941,3.38297138,3025.0,3022.1,3.54975797]
[1768921617141,1.40389907,3024.9,3022.2,3.54975797]
[1768921617332,0.45754962,3024.8,3022.2,3.54975797]
[1768921617533,3.38297138,3025.0,3022.3,3.54975797]
[1768921617733,0.94639661,3024.9,3022.3,3.54975797]
[1768921617932,3.38717101,3025.0,3022.3,3.54975797]
[1768921618334,3.38717101,3025.0,3022.5,3.54975797]
[1768921618734,0.00419963,3025.0,3022.7,3.54975797]
[1768921619034,3.38717101,3025.0,3022.7,3.54975797]
[1768921619234,3.38297138,3024.8,3022.7,3.54975797]
[1768921619434,4.78695618,3024.7,3022.1,6.86075797]
[1768921619742,0.45761404,3024.6,3022.2,3.54975797]
[1768921619929,3.38297138,3024.7,3022.2,3.54975797]
[1768921620135,0.45760143,3024.6,3022.3,27.9]
[1768921620335,3.38297138,3024.4,3022.1,3.311]
[1768921620544,3.38297138,3024.2,3021.6,3.54975797]
[1768921620842,3.38297138,3024.8,3021.8,3.54975797]
[1768921621042,4.78612263,3024.7,3021.8,3.54975797]
[1768921621245,0.00419963,3025.0,3022.0,3.54975797]
[1768921621636,0.00419963,3025.0,3021.9,4.23549124]
[1768921621637,0.00419963,3025.0,3022.2,3.54975797]
[1768921621943,0.00419963,3025.0,3022.4,3.54975797]
[1768921622546,0.00419963,3025.0,3022.6,3.54975797]
[1768921622743,0.00419963,3025.0,3022.8,3.54975797]
[1768921622935,3.38297138,3024.8,3022.7,3.31]
[1768921623135,3.38297138,3024.6,3022.0,3.54975797]
[1768921623334,3.38297138,3024.4,3021.7,29.878]
[1768921623539,3.38297138,3024.2,3021.7,1.978]
[1768921623746,3.38297138,3024.0,3021.7,1.978]
[1768921624051,3.38297138,3023.8,3021.7,1.978]
[1768921624439,3.38297138,3023.8,3021.7,5.52775797]
[1768921624637,3.38297138,3024.7,3021.7,5.52775797]
[1768921624836,3.38297138,3024.5,3021.7,5.52775797]
[1768921625047,3.38297138,3024.3,3021.7,5.52775797]
[1768921625251,3.38297138,3024.1,3021.7,5.52775797]
[1768921625543,3.38297138,3023.9,3021.0,3.54975797]
[1768921625746,3.38297138,3023.7,3021.1,3.55318881]
[1768921625940,3.83954237,3023.6,3021.1,3.55318881]
[1768921626249,0.45725511,3023.5,3021.1,3.55318881]
[1768921626442,0.45766542,3023.4,3021.1,3.55318881]
[1768921626642,3.38297138,3023.6,3021.1,3.55318881]
[1768921626961,0.45767964,3023.5,3021.1,3.55318881]
[1768921627145,0.45767964,3023.4,3021.1,3.55318881]
[1768921627447,3.38297138,3024.2,3021.2,4.27294886]
[1768921627743,1.40635353,3024.1,3021.3,3.54975797]
[1768921627952,3.38297138,3023.9,3021.3,3.54975797]
[1768921628245,3.38297138,3023.9,3021.1,0.00343084]
[1768921628246,3.38297138,3023.7,3021.1,0.00343084]
[1768921628433,3.38297138,3023.5,3021.1,0.00343084]
[1768921628633,3.38297138,3023.3,3021.1,0.00343084]
[1768921628848,3.38297138,3023.1,3021.1,0.00343084]
[1768921629046,3.38297138,3022.9,3021.1,0.00343084]
[1768921629343,1.720553,3023.4,3021.1,0.00343084]
[1768921629344,3.38297138,3022.7,3021.1,0.00343084]
[1768921629551,3.38297138,3022.5,3021.1,0.00343084]
[1768921630740,0.45630615,3022.4,3021.1,0.00343084]
[1768921630941,3.38297138,3022.5,3021.1,0.00343084]
[1768921631944,3.83892223,3022.4,3021.1,0.00343084]
[1768921632143,0.00333413,3022.7,3021.1,0.00343084]
[1768921632546,0.00333413,3022.7,3021.1,3.55318881]
[1768921633246,0.00333413,3022.7,3021.1,0.00343084]
[1768921634342,3.38630551,3022.7,3021.1,0.00343084]
[1768921635144,0.00333413,3022.7,3021.1,3.37392805]
[1768921635545,3.38586044,3023.9,3021.3,3.37049721]
[1768921635745,3.38586044,3023.9,3021.4,3.37049721]
[1768921635953,3.38586044,3023.9,3021.5,3.37049721]
[1768921636446,3.38873647,3023.9,3021.7,3.37049721]
[1768921636642,3.38873647,3023.9,3021.6,27.9]
[1768921636850,0.45614298,3023.8,3021.6,27.9]
[1768921637047,3.38873647,3023.9,3021.6,27.9]
[1768921637353,3.38586044,3023.7,3021.3,1.979]
[1768921637549,3.38586044,3023.5,3021.1,3.37392805]
[1768921637851,3.38586044,3023.3,3021.1,3.37392805]
[1768921638149,3.38586044,3023.1,3021.1,0.00343084]
[1768921638355,1.40344343,3023.2,3021.1,0.00343084]
[1768921638356,3.38586044,3022.9,3021.1,0.00343084]
[1768921638652,3.38586044,3022.7,3021.1,0.00343084]
[1768921638950,3.38586044,3022.5,3021.1,0.00343084]
[1768921639546,3.38586044,3022.5,3019.4,5.291]
[1768921639749,3.38586044,3022.3,3019.4,5.291]
[1768921639953,3.38586044,3022.1,3019.4,3.311]
[1768921640153,3.38586044,3021.9,3019.4,3.311]
[1768921640451,3.38586044,3021.7,3019.4,3.311]
[1768921640646,3.38907823,3021.7,3019.4,3.31457426]
[1768921640838,3.38586044,3021.5,3019.4,3.31457426]
[1768921643047,3.38586044,3021.3,3019.4,0.00357426]
[1768921643349,3.38586044,3021.1,3019.4,0.00357426]
[1768921643550,3.38586044,3020.9,3019.4,0.00357426]
[1768921643744,3.38586044,3020.9,3019.1,0.5]
[1768921643953,3.38586044,3020.0,3016.7,4.0963853]
[1768921644250,3.38586044,3019.8,3016.6,3.37049721]
[1768921644448,3.38586044,3019.6,3016.6,3.37049721]
[1768921644638,0.16573,3019.7,3016.7,7.65644286]
[1768921644837,3.38586044,3020.0,3016.8,3.37049721]
[1768921645043,1.71811043,3021.0,3017.4,3.37049721]
[1768921645240,3.38586044,3020.8,3018.2,3.37049721]
[1768921645951,3.38586044,3020.6,3017.5,3.37049721]
[1768921646745,3.38586044,3020.6,3017.7,3.37049721]
[1768921647146,3.38586044,3020.6,3017.9,3.37049721]
[1768921647647,3.38586044,3021.2,3018.2,3.37049721]
[1768921648047,3.38586044,3021.2,3018.3,4.23203562]
[1768921648259,3.38586044,3021.2,3018.4,3.37049721]
[1768921648957,3.38586044,3020.7,3017.8,3.37049721]
[1768921649448,3.38586044,3020.7,3018.0,3.37049721]
[1768921649648,0.16566,3021.0,3018.2,3.37049721]
[1768921649948,3.55152044,3021.0,3018.2,3.37049721]
[1768921650548,3.55152044,3021.0,3018.4,3.37049721]
[1768921650852,3.38586044,3021.0,3018.6,3.37049721]
[1768921651355,3.38586044,3021.6,3018.8,3.37049721]
[1768921652546,3.38586044,3021.4,3018.2,3.37049721]
[1768921652750,3.38586044,3021.2,3018.2,3.37049721]
[1768921652952,3.38586044,3020.4,3016.9,3.37049721]
[1768921653147,1.33089886,3020.8,3016.9,3.37049721]
[1768921653148,3.38586044,3020.2,3016.9,3.37049721]
[1768921653462,3.38586044,3019.3,3016.7,0.00326376]
[1768921653659,3.38586044,3019.1,3016.7,0.00326376]
[1768921654456,3.38586044,3019.1,3015.2,7.82329752]
[1768921654457,3.38586044,3018.6,3015.2,4.50929752]
[1768921654655,3.38586044,3017.9,3015.2,4.50929752]
[1768921654862,3.38586044,3017.2,3014.4,0.7538529]
[1768921655161,3.38586044,3017.7,3014.6,3.37049721]
[1768921655358,3.38586044,3018.4,3014.9,3.37049721]
[1768921655563,3.38586044,3018.4,3014.9,3.37306647]
[1768921655754,3.38586044,3018.4,3015.1,3.37049721]
[1768921656161,3.38586044,3018.2,3015.1,3.37049721]
[1768921656364,3.38586044,3018.0,3015.1,3.37049721]
[1768921656560,3.38586044,3018.6,3015.1,3.37049721]
[1768921656763,3.38586044,3018.4,3015.1,3.37049721]
[1768921656964,3.38586044,3018.2,3015.1,3.37049721]
[1768921658062,3.38586044,3018.9,3016.0,3.37049721]
[1768921658668,3.38586044,3017.7,3014.9,0.00256926]
[1768921658966,0.16577,3019.1,3015.3,1.33089886]
[1768921659161,0.16577,3019.1,3014.9,0.00256926]
[1768921659162,3.38586044,3020.0,3016.3,3.37049721]
[1768921659367,3.38586044,3019.4,3016.3,3.37049721]
[1768921659575,3.3887717,3019.3,3016.4,4.32541292]
[1768921659877,3.3887717,3019.3,3016.5,3.37049721]
[1768921660372,3.38586044,3019.0,3015.6,3.37049721]
[1768921660557,3.38586044,3019.0,3014.9,0.00256926]
[1768921660558,4.7167593,3017.7,3014.9,3.37306647]
[1768921660765,3.55170044,3017.7,3014.9,3.37306647]
[1768921661065,3.316,3018.2,3014.9,3.37306647]
[1768921661066,3.38586044,3017.5,3014.9,3.37306647]
[1768921661469,0.16585,3017.6,3014.9,3.37306647]
[1768921661769,3.38586044,3018.1,3014.9,3.37306647]
[1768921663165,3.52556345,3017.4,3014.9,0.00256926]
[1768921663367,3.52556345,3016.9,3014.9,0.00256926]
[1768921663573,3.52978039,3016.9,3014.9,0.00256926]
[1768921664267,3.52978039,3016.9,3013.6,3.60234254]
[1768921664773,3.52556345,3015.4,3013.3,0.5]
[1768921664976,3.54869777,3015.2,3011.5,3.42288024]
[1768921665172,3.54869777,3015.2,3012.1,3.42288024]
[1768921665471,3.82504686,3015.2,3013.1,4.57730049]
[1768921666870,3.82504686,3015.2,3013.1,1.52860272]
[1768921667175,0.16596,3015.5,3013.1,1.52860272]
[1768921667378,1.33089886,3015.2,3013.1,1.52860272]
[1768921667576,0.16599,3015.0,3013.1,1.52860272]
[1768921667777,1.33089886,3013.8,3011.0,3.0]
[1768921668074,1.33089886,3013.2,3011.0,3.0]
[1768921668272,0.16608,3013.4,3011.0,3.0]
[1768921668573,1.33089886,3014.6,3011.2,3.42288024]
[1768921668776,1.33331395,3014.6,3011.3,3.42288024]
[1768921669277,1.33089886,3013.9,3011.3,3.42288024]
[1768921669678,1.33089886,3013.9,3011.2,0.00296426]
[1768921670176,1.33089886,3013.9,3011.2,3.4258445]
[1768921670872,1.33331395,3014.6,3011.2,3.4258445]
[1768921671272,0.00241509,3014.6,3011.2,3.4258445]
[1768921671476,0.00241509,3014.6,3011.4,3.42288024]
[1768921672270,0.00241509,3014.6,3011.9,3.42288024]
[1768921672671,0.00241509,3014.6,3011.9,6.74288024]
[1768921672974,0.00241509,3014.6,3012.0,3.42288024]
[1768921673277,1.33331395,3014.6,3012.0,3.42288024]
[1768921673682,1.33331395,3014.6,3011.3,3.42288024]
[1768921674075,0.16603,3014.3,3011.3,3.42288024]
[1768921674878,0.00241509,3014.6,3011.3,3.42288024]
[1768921675077,1.33331395,3014.6,3011.3,3.42288024]
[1768921675477,1.33089886,3013.8,3011.2,0.00296426]
[1768921675779,0.16608,3013.5,3011.2,0.00296426]
[1768921676280,0.16608,3013.3,3011.2,0.00296426]
[1768921677583,0.16608,3013.3,3011.2,3.4258445]
[1768921677984,0.16608,3013.3,3011.1,5.14015152]
[1768921677985,1.33089886,3013.1,3011.1,5.14015152]
[1768921678181,1.849,3014.4,3005.3,16.96385696]
[1768921678182,1.33089886,3012.3,3006.0,4.0963853]
[1768921678387,1.71811043,3014.0,3005.2,3.42288024]
[1768921678388,1.33089886,3007.3,3005.2,3.42288024]
[1768921678679,1.3655066,3012.2,3005.4,3.42288024]
[1768921678680,1.33089886,3008.3,3005.4,3.42288024]
[1768921678885,1.33089886,3008.3,3006.3,3.42288024]
[1768921679180,1.33347551,3008.3,3006.3,0.00422758]
[1768921679389,0.00257665,3008.3,3006.4,3.92288024]
[1768921679880,0.00257665,3008.3,3006.4,2.42460825]
[1768921680277,1.95512243,3010.5,3007.7,5.05488457]
[1768921680482,0.90657257,3010.4,3006.4,3.322]
[1768921680676,3.32,3010.3,3006.3,0.00422758]
[1768921680873,1.33089886,3009.8,3006.4,5.05488457]
[1768921681082,0.90657257,3010.1,3006.3,0.00422758]
[1768921681289,0.90918714,3010.1,3006.3,0.00422758]
[1768921681583,0.00261457,3010.1,3006.4,4.39102467]
[1768921681777,0.00261457,3010.1,3006.3,0.00422758]
[1768921681778,0.00261457,3010.1,3006.8,5.05488457]
[1768921681983,0.00261457,3010.1,3006.9,3.42288024]
[1768921682488,0.00261457,3010.1,3007.2,3.42288024]
[1768921682875,0.00261457,3010.1,3008.0,3.42288024]
[1768921683082,0.00261457,3010.1,3008.6,3.42288024]
[1768921683281,3.323,3012.1,3008.9,3.42288024]
[1768921683482,0.88992153,3011.6,3008.9,3.42288024]
[1768921683683,0.88992153,3011.6,3008.6,0.00268916]
[1768921683884,0.88992153,3011.6,3008.6,3.4255694]
[1768921684083,0.88992153,3011.6,3008.7,3.42288024]
[1768921684288,0.89419953,3011.6,3008.7,3.42288024]
[1768921684784,0.004278,3011.6,3008.9,3.42288024]
[1768921684990,0.004278,3011.6,3009.7,3.42288024]
[1768921685188,0.26555792,3013.2,3010.2,3.42288024]
[1768921685389,2.53104018,3013.8,3010.4,3.42288024]
[1768921685591,1.61121706,3014.5,3010.5,3.42288024]
[1768921685891,1.61121706,3014.5,3010.7,3.42288024]
[1768921686088,1.61121706,3014.5,3011.0,8.47776481]
[1768921686292,0.26989297,3014.5,3011.7,3.42288024]
[1768921686486,1.0,3013.1,3011.7,3.42288024]
[1768921687390,0.00370822,3014.5,3012.3,3.42288024]
[1768921687582,0.00370822,3014.5,3012.5,3.42288024]
[1768921687780,0.00370822,3014.5,3012.7,3.42288024]
[1768921688081,0.16591,3016.5,3011.9,1.61121706]
[1768921688082,0.76122308,3016.7,3014.3,3.42288024]